bitfinex/quotes_SOLUSD_20240712
["timestamp","ask_amount","ask_price","bid_price","bid_amount"]
[1720777833796,36.7701,135.5,135.46,7.382]
[1720777834003,7.3807,135.49,135.44,7.383]
[1720777834227,7.3807,135.49,135.45,7.3826]
[1720777834726,29.39,135.5,135.45,7.3827]
[1720777834915,7.3803,135.5,135.46,7.3817]
[1720777835817,7.3815,135.48,135.44,7.383]
[1720777837220,27.3807,135.49,135.45,7.3826]
[1720777837603,27.3807,135.49,135.44,7.3831]
[1720777837807,20.0,135.49,135.43,7.3834]
[1720777838017,29.39,135.48,135.42,7.3842]
[1720777838412,7.3823,135.46,135.42,7.3842]
[1720777838817,7.3818,135.47,135.43,7.3838]
[1720777839419,7.3823,135.46,135.42,7.384]
[1720777841406,7.3822,135.46,135.42,7.384]
[1720777842328,7.3828,135.45,135.41,7.3848]
[1720777843524,36.7724,135.46,135.42,7.3844]
[1720777844729,29.39,135.46,135.43,7.3837]
[1720777845109,36.7712,135.48,135.44,7.3832]
[1720777845311,20.0,135.47,135.44,7.3832]
[1720777846333,20.0,135.47,135.43,7.3836]
[1720777847030,36.7712,135.48,135.44,7.3833]
[1720777847725,7.3823,135.46,135.42,7.3841]
[1720777848718,7.3817,135.47,135.43,7.3837]
[1720777851130,36.7713,135.48,135.43,7.3837]
[1720777851630,7.3818,135.47,135.43,7.3837]
[1720777852010,7.3812,135.48,135.44,7.3832]
[1720777852510,14.69,135.45,135.44,7.3832]
[1720777853432,14.69,135.46,135.45,7.3825]
[1720777853933,14.69,135.46,135.44,7.3831]
[1720777855417,14.69,135.46,135.43,7.3837]
[1720777855620,14.69,135.45,135.43,7.3837]
[1720777856318,14.69,135.46,135.44,7.3833]
[1720777856833,14.69,135.45,135.44,7.3833]
[1720777857222,14.69,135.46,135.44,7.3833]
[1720777857432,7.3799,135.51,135.46,7.3818]
[1720777857627,14.69,135.48,135.46,7.3818]
[1720777859221,14.69,135.47,135.46,7.3818]
[1720777859425,14.69,135.47,135.45,7.3825]
[1720777860137,14.69,135.48,135.46,7.3819]
[1720777860329,14.97242082,135.54,135.47,1.47606076]
[1720777860526,14.69,135.51,135.49,7.3801]
[1720777861136,7.3791,135.52,135.47,22.4225]
[1720777861434,14.69,135.48,135.47,7.3814]
[1720777862648,66.1392,135.52,135.47,7.3814]
[1720777863227,58.76,135.52,135.46,7.3821]
[1720777863444,14.69,135.47,135.46,7.3821]
[1720777864123,58.76,135.52,135.47,7.3814]
[1720777864327,14.69,135.48,135.47,7.3814]
[1720777865950,14.69,135.49,135.48,7.3808]
[1720777867329,14.69,135.49,135.47,7.3814]
[1720777868162,14.69,135.48,135.46,7.382]
[1720777868472,7.3803,135.5,135.46,7.382]
[1720777868473,14.69,135.47,135.46,7.382]
[1720777870058,14.69,135.47,135.44,16.612]
[1720777870246,14.69,135.46,135.45,7.3827]
[1720777870577,14.69,135.46,135.44,7.383]
[1720777870752,14.69,135.45,135.43,7.3836]
[1720777870947,14.69,135.44,135.43,7.3836]
[1720777871145,14.69,135.44,135.42,7.3841]
[1720777871567,14.69,135.44,135.43,7.3838]
[1720777872540,7.3813,135.48,135.41,16.5296]
[1720777872541,7.3808,135.49,135.41,16.5296]
[1720777872761,7.59573222,135.5,135.41,31.2196]
[1720777872762,14.69,135.46,135.41,31.2196]
[1720777872963,14.69,135.46,135.45,7.3823]
[1720777876353,7.3806,135.49,135.45,7.3823]
[1720777876548,7.3802,135.5,135.46,7.3822]
[1720777876753,14.69,135.47,135.46,7.3822]
[1720777876955,14.69,135.47,135.44,7.383]
[1720777877169,14.69,135.45,135.44,7.383]
[1720777877469,14.69,135.46,135.44,7.3831]
[1720777878065,14.69,135.45,135.41,16.5296]
[1720777878258,7.3818,135.47,135.43,7.3837]
[1720777878457,14.69,135.44,135.42,7.3841]
[1720777878652,14.69,135.44,135.43,7.3838]
[1720777879861,14.69,135.45,135.44,7.3828]
[1720777882484,14.69,135.45,135.42,7.3842]
[1720777882656,14.69,135.43,135.42,7.3842]
[1720777883656,14.69,135.44,135.43,7.3835]
[1720777886371,14.69,135.44,135.42,7.3843]
[1720777886565,14.69,135.43,135.42,7.3843]
[1720777891280,14.69,135.44,135.42,7.3843]
[1720777891475,14.69,135.43,135.42,7.3843]
[1720777897085,14.69,135.43,135.39,6.024]
[1720777897086,14.69,135.43,135.41,7.3844]
[1720777897286,14.69,135.42,135.4,7.3852]
[1720777897462,7.3834,135.44,135.4,7.3852]
[1720777897463,14.69,135.41,135.4,7.3852]
[1720777897776,14.69,135.41,135.39,7.3858]
[1720777897980,14.69,135.4,135.38,7.3863]
[1720777898279,58.76,135.45,135.39,7.386]
[1720777898488,14.69,135.4,135.39,7.386]
[1720777898802,20.0,135.44,135.39,7.386]
[1720777898966,14.69,135.41,135.4,7.3854]
[1720777899663,14.69,135.41,135.39,7.3858]
[1720777899986,14.69,135.4,135.39,7.3858]
[1720777901878,14.69,135.4,135.35,14.69]
[1720777902078,14.69,135.4,135.38,7.3862]
[1720777902278,14.69,135.39,135.38,7.3862]
[1720777903475,14.69,135.39,135.34,31.2344]
[1720777903476,14.69,135.4,135.39,7.3857]
[1720777904270,14.69,135.4,135.34,16.5444]
[1720777904470,14.69,135.38,135.37,7.3868]
[1720777905366,14.69,135.38,135.36,7.3875]
[1720777905566,14.69,135.37,135.36,7.3875]
[1720777909193,14.69,135.37,135.35,7.388]
[1720777909500,14.69,135.36,135.35,7.388]
[1720777909802,14.69,135.37,135.35,7.388]
[1720777910003,14.69,135.37,135.36,7.3877]
[1720777910173,14.69,135.38,135.37,7.387]
[1720777910585,14.69,135.38,135.33,0.8551477]
[1720777910801,14.69,135.37,135.33,0.8551477]
[1720777911367,14.69,135.37,135.35,7.388]
[1720777912505,14.69,135.37,135.35,7.3881]
[1720777913482,16.0352,135.41,135.33,0.8551477]
[1720777913685,14.69,135.38,135.33,15.5451477]
[1720777914212,14.69,135.38,135.36,7.3876]
[1720777914583,14.69,135.37,135.36,7.3876]
[1720777915014,14.69,135.37,135.34,7.3885]
[1720777915522,14.69,135.36,135.34,7.3885]
[1720777917113,14.69,135.36,135.35,7.3882]
[1720777917399,14.69,135.36,135.34,7.3885]
[1720777917802,14.69,135.36,135.35,7.3882]
[1720777918008,14.69,135.36,135.33,0.8551477]
[1720777918179,14.69,135.36,135.34,7.3885]
[1720777918916,14.69,135.36,135.33,0.8551477]
[1720777919290,14.69,135.34,135.33,0.8551477]
[1720777919916,22.0787,135.34,135.33,0.8551477]
[1720777920090,67.0787,135.34,135.33,0.8551477]
[1720777920280,67.0787,135.34,135.19,275.34383036]
[1720777920281,7.3915,135.29,135.22,15.8667]
[1720777920484,22.21,135.33,135.22,15.8667]
[1720777920685,22.0815,135.29,135.22,15.8667]
[1720777920911,22.0815,135.29,135.28,25.79032762]
[1720777921092,67.0815,135.29,135.28,25.79032762]
[1720777921512,87.0815,135.29,135.28,19.88174293]
[1720777922303,101.9,135.29,135.21,7.3955]
[1720777922485,14.69,135.22,135.21,7.3955]
[1720777922690,14.69,135.23,135.22,7.3952]
[1720777923212,14.69,135.23,135.2,0.8551477]
[1720777923386,83.4805,135.28,135.2,0.8551477]
[1720777923589,83.4805,135.28,135.21,7.3959]
[1720777923590,14.69,135.22,135.21,7.3959]
[1720777923800,72.3922,135.28,135.2,0.8551477]
[1720777923994,65.0,135.28,135.2,15.5451477]
[1720777924196,14.69,135.25,135.23,7.3942]
[1720777924714,27.392,135.28,135.23,7.3942]
[1720777924715,14.69,135.24,135.23,7.3942]
[1720777924989,14.69,135.24,135.2,0.8551477]
[1720777925297,20.0,135.28,135.2,15.5451477]
[1720777925514,14.69,135.25,135.24,7.394]
[1720777925722,14.69,135.26,135.25,7.3934]
[1720777926026,9.80307339,135.26,135.24,7.394]
[1720777926197,27.391,135.3,135.24,7.394]
[1720777926198,14.69,135.25,135.24,7.394]
[1720777926525,14.69,135.25,135.22,7.3952]
[1720777926692,14.69,135.23,135.2,8.2514477]
[1720777926891,14.69,135.22,135.2,8.2514477]
[1720777927098,14.69,135.23,135.21,7.3959]
[1720777927314,20.0,135.3,135.2,15.5451477]
[1720777927599,14.69,135.23,135.2,0.8551477]
[1720777927815,14.69,135.22,135.2,0.8551477]
[1720777928021,14.69,135.22,135.21,7.3959]
[1720777928221,14.69,135.22,135.2,0.8551477]
[1720777928392,14.69,135.21,135.2,0.8551477]
[1720777929011,22.0859,135.21,135.2,0.8551477]
[1720777929532,67.0859,135.21,135.19,0.04383036]
[1720777929698,27.3964,135.2,135.19,0.04383036]
[1720777930025,29.6075,135.18,135.17,56.48583143]
[1720777930228,39.6075,135.18,135.17,30.02578375]
[1720777930525,52.21,135.18,135.08,7.4027]
[1720777930700,20.0,135.17,135.06,0.8551477]
[1720777930905,30.0,135.17,135.06,8.2592477]
[1720777931106,58.76,135.1,135.06,8.2587477]
[1720777931413,30.0,135.17,135.06,0.8551477]
[1720777931622,45.0,135.16,135.06,0.8551477]
[1720777931803,20.0,135.15,135.06,0.8551477]
[1720777932003,7.3987,135.16,135.08,7.4026]
[1720777932004,14.69,135.13,135.08,7.4026]
[1720777932200,45.0,135.12,135.08,7.4026]
[1720777932417,10.0,135.19,135.09,14.69]
[1720777932602,45.0,135.18,135.11,7.4009]
[1720777932798,10.0,135.22,135.07,45.3834]
[1720777932995,6.53696839,135.26,135.09,29.51]
[1720777933200,39.51,135.24,135.16,7.3986]
[1720777933513,39.51,135.24,135.1,15.3861]
[1720777933514,29.51,135.24,135.1,15.3861]
[1720777933826,17.61332565,135.28,135.17,7.3978]
[1720777934007,29.51,135.25,135.17,7.3978]
[1720777934406,29.51,135.23,135.13,7.4]
[1720777934612,29.51,135.21,135.13,7.4]
[1720777934814,29.51,135.22,135.14,7.3991]
[1720777935126,29.51,135.22,135.1,15.3861]
[1720777935318,29.51,135.18,135.1,15.3861]
[1720777935517,45.0,135.17,135.1,15.3861]
[1720777935834,29.51,135.18,135.13,7.4]
[1720777936025,29.51,135.2,135.13,7.4]
[1720777936228,65.0,135.19,135.1,15.3861]
[1720777936716,29.51,135.18,135.1,22.7876]
[1720777936925,29.51,135.18,135.12,7.4006]
[1720777937228,29.51,135.18,135.13,7.4001]
[1720777937540,29.51,135.18,135.11,7.4009]
[1720777938232,29.51,135.18,135.1,15.3861]
[1720777938433,65.0,135.17,135.1,15.3861]
[1720777938629,72.3981,135.17,135.1,22.7878]
[1720777938866,65.0,135.17,135.11,7.4013]
[1720777939021,65.0,135.17,135.1,15.3861]
[1720777939022,7.4,135.14,135.1,15.3861]
[1720777939336,29.51,135.16,135.1,15.3861]
[1720777939519,65.0,135.15,135.1,15.3861]
[1720777939719,20.0,135.15,135.11,7.4013]
[1720777939908,29.51,135.16,135.1,15.3861]
[1720777940110,45.0,135.15,135.1,15.3861]
[1720777941136,29.51,135.12,135.06,17.0903477]
[1720777941343,52.21,135.14,135.06,17.0903477]
[1720777941344,29.51,135.1,135.06,17.0903477]
[1720777941648,29.51,135.12,135.06,17.0903477]
[1720777941814,7.4002,135.13,135.07,7.4033]
[1720777942124,7.401,135.12,135.06,17.0903477]
[1720777942321,7.4014,135.11,135.06,17.0903477]
[1720777942523,52.402,135.1,135.06,17.0903477]
[1720777942932,7.4024,135.09,135.06,17.0903477]
[1720777943518,45.0,135.1,135.06,17.0903477]
[1720777943736,45.0,135.11,135.06,17.0903477]
[1720777943934,65.0,135.11,135.06,17.0903477]
[1720777944318,20.0,135.11,135.06,17.0903477]
[1720777944618,29.51,135.16,135.06,17.0903477]
[1720777944851,36.9086,135.16,135.1,7.4018]
[1720777945134,7.3993,135.15,135.06,17.0903477]
[1720777945314,29.51,135.16,135.07,6.3358]
[1720777945510,29.51,135.14,135.07,6.3358]
[1720777945716,7.4008,135.13,135.07,6.3358]
[1720777945917,7.4008,135.13,135.07,13.739]
[1720777945918,7.4003,135.13,135.07,13.739]
[1720777946118,29.51,135.14,135.07,6.3358]
[1720777946325,7.4014,135.11,135.07,6.3358]
[1720777946715,29.51,135.12,135.06,17.0903477]
[1720777946919,20.0,135.11,135.06,17.0903477]
[1720777947425,36.9097,135.14,135.07,7.4035]
[1720777947634,27.4003,135.13,135.07,7.4035]
[1720777948335,7.401,135.12,135.06,24.4943477]
[1720777948543,20.0,135.13,135.06,17.0903477]
[1720777948719,7.4001,135.14,135.06,17.0903477]
[1720777948924,29.51,135.18,135.06,17.0903477]
[1720777949122,29.51,135.18,135.11,7.4009]
[1720777949337,7.3989,135.16,135.1,7.4018]
[1720777949639,7.398,135.18,135.12,7.4007]
[1720777950724,29.51,135.2,135.12,15.1362]
[1720777951331,7.3971,135.19,135.13,7.4002]
[1720777952023,29.51,135.2,135.12,15.1362]
[1720777952331,7.3976,135.18,135.12,22.537]
[1720777952642,29.51,135.2,135.13,7.4002]
[1720777952846,65.0,135.19,135.12,15.1362]
[1720777953322,72.3971,135.19,135.13,7.4002]
[1720777953641,7.3976,135.18,135.12,22.5369]
[1720777954233,20.0,135.19,135.13,7.4002]
[1720777954234,27.3971,135.19,135.13,7.4002]
[1720777954458,7.3964,135.21,135.12,15.1362]
[1720777954624,37.1261184,135.22,135.18,7.3971]
[1720777954625,7.6161184,135.22,135.18,7.3971]
[1720777954940,7.3926,135.27,135.21,7.3954]
[1720777955256,7.3931,135.26,135.2,7.3963]
[1720777955465,29.51,135.26,135.19,16.3053]
[1720777955750,29.51,135.24,135.19,16.3053]
[1720777955950,7.3949,135.23,135.19,16.3053]
[1720777956340,7.3954,135.22,135.19,16.3053]
[1720777956518,7.3963,135.21,135.19,16.3053]
[1720777956939,7.3953,135.22,135.19,16.3053]
[1720777957151,7.3948,135.23,135.19,16.3053]
[1720777957348,36.9043,135.24,135.19,16.3053]
[1720777957634,7.3957,135.22,135.19,16.3053]
[1720777957839,65.0,135.23,135.19,16.3053]
[1720777958042,7.3957,135.22,135.19,16.3053]
[1720777958222,7.3964,135.2,135.11,15.1467]
[1720777958424,7.396,135.21,135.15,7.399]
[1720777958623,7.3966,135.2,135.14,7.3995]
[1720777958828,7.3959,135.21,135.15,7.399]
[1720777959029,7.3954,135.22,135.11,15.1467]
[1720777959236,7.3954,135.22,135.16,7.3985]
[1720777959438,7.396,135.21,135.16,7.3985]
[1720777959647,65.0,135.23,135.16,7.3985]
[1720777959829,7.3959,135.21,135.15,7.3991]
[1720777960420,7.3965,135.2,135.11,15.1467]
[1720777960625,7.397,135.19,135.13,7.3997]
[1720777960837,29.51,135.22,135.14,7.3995]
[1720777961042,7.3971,135.19,135.14,7.3995]
[1720777961242,7.3966,135.2,135.14,7.3995]
[1720777961550,7.3971,135.19,135.14,7.3995]
[1720777961857,7.3971,135.19,135.14,7.3997]
[1720777962146,65.0,135.21,135.15,7.3989]
[1720777962444,72.396,135.21,135.12,1.47994109]
[1720777962743,72.396,135.21,135.15,7.399]
[1720777962951,7.3965,135.2,135.15,7.399]
[1720777963538,7.3965,135.2,135.11,15.1467]
[1720777963539,7.397,135.19,135.14,7.3996]
[1720777963853,65.0,135.21,135.13,7.4]
[1720777964047,7.3975,135.18,135.12,7.4006]
[1720777964633,7.3971,135.19,135.13,7.4002]
[1720777964846,7.3971,135.19,135.14,7.3996]
[1720777965446,29.51,135.2,135.15,7.3991]
[1720777965646,65.0,135.21,135.15,7.3991]
[1720777965841,29.51,135.22,135.12,1.47837361]
[1720777966036,7.3959,135.21,135.12,46.47837361]
[1720777966237,29.51,135.24,135.12,1.47837361]
[1720777966437,7.3961,135.21,135.12,1.47837361]
[1720777966657,7.3961,135.21,135.15,7.3987]
[1720777966941,36.9055,135.22,135.17,7.398]
[1720777967149,7.3955,135.22,135.17,7.398]
[1720777967543,7.3959,135.21,135.12,1.47837361]
[1720777967750,7.3959,135.21,135.12,21.47837361]
[1720777968140,7.3955,135.22,135.13,15.2849]
[1720777968447,7.3955,135.22,135.14,1.47815481]
[1720777969153,7.3955,135.22,135.17,7.398]
[1720777969658,29.51,135.24,135.14,1.47815481]
[1720777969831,29.51,135.24,135.15,1.47804543]
[1720777969832,7.3946,135.24,135.15,1.47804543]
[1720777970032,7.3948,135.23,135.18,7.3971]
[1720777970235,7.3948,135.23,135.15,1.47804543]
[1720777970236,7.3955,135.22,135.15,1.47804543]
[1720777970456,43.66051232,135.26,135.18,7.3973]
[1720777970640,7.3944,135.24,135.19,7.3969]
[1720777970834,7.3948,135.23,135.18,7.3974]
[1720777971152,29.51,135.26,135.19,15.4702]
[1720777971357,20.0,135.25,135.19,15.4702]
[1720777972037,7.3955,135.22,135.19,15.4702]
[1720777972669,27.3937,135.25,135.2,7.3963]
[1720777972858,7.3937,135.25,135.2,7.3963]
[1720777973059,7.3964,135.2,135.19,15.4702]
[1720777973281,7.396,135.21,135.19,15.4702]
[1720777973882,7.3955,135.22,135.19,15.4702]
[1720777974071,7.396,135.21,135.19,15.4702]
[1720777974274,7.3964,135.2,135.19,15.4702]
[1720777974482,7.3973,135.19,135.15,16.543]
[1720777975874,7.3964,135.2,135.15,23.942]
[1720777976077,7.3961,135.21,135.15,23.942]
[1720777976277,18.4861,135.24,135.15,16.543]
[1720777976458,7.3959,135.21,135.16,7.3982]
[1720777976652,7.3959,135.21,135.15,16.543]
[1720777976653,7.3955,135.22,135.17,7.398]
[1720777976953,7.3955,135.22,135.17,7.3979]
[1720777976954,20.0,135.21,135.17,7.3979]
[1720777977278,20.0,135.21,135.15,16.543]
[1720777977453,7.3964,135.2,135.15,23.9419]
[1720777977786,7.397,135.19,135.15,16.543]
[1720777977992,20.0,135.22,135.15,16.543]
[1720777978784,7.3974,135.19,135.15,16.543]
[1720777979295,7.3966,135.2,135.15,23.9421]
[1720777979477,52.3961,135.21,135.16,7.3986]
[1720777979660,52.3961,135.21,135.15,16.543]
[1720777979661,45.0,135.21,135.15,16.543]
[1720777979986,7.3981,135.17,135.15,16.543]
[1720777980483,7.3984,135.17,135.13,6.3391]
[1720777980682,48.0031,135.19,135.13,6.3391]
[1720777980863,7.3987,135.16,135.13,6.3391]
[1720777981176,7.3983,135.17,135.13,6.3391]
[1720777981580,7.3987,135.16,135.13,6.3391]
[1720777982064,7.3991,135.15,135.13,6.3391]
[1720777982481,7.3987,135.16,135.13,6.3391]
[1720777983280,48.0031,135.19,135.13,6.3391]
[1720777983582,7.3981,135.17,135.13,6.3391]
[1720777983778,7.3986,135.16,135.13,6.3391]
[1720777983970,7.3982,135.17,135.13,6.3391]
[1720777984171,7.3986,135.16,135.13,6.3391]
[1720777984387,7.3992,135.15,135.13,6.3391]
[1720777984681,20.0,135.18,135.12,15.9098]
[1720777984883,7.3998,135.14,135.12,15.9098]
[1720777985379,7.4009,135.12,135.08,15.3271]
[1720777985587,7.4004,135.13,135.08,22.7301]
[1720777985968,7.4004,135.13,135.08,15.3271]
[1720777986174,7.4004,135.13,135.08,22.7301]
[1720777986568,29.51,135.15,135.08,15.3271]
[1720777986782,45.0,135.14,135.08,15.3271]
[1720777987379,7.402,135.1,135.08,15.3271]
[1720777987607,7.4024,135.09,135.08,15.3271]
[1720777987890,7.4025,135.09,135.06,0.8551477]
[1720777988079,7.4031,135.08,135.06,0.8551477]
[1720777988381,7.4022,135.1,135.06,0.8551477]
[1720777988893,7.4026,135.09,135.06,0.8551477]
[1720777989984,29.51,135.11,135.06,8.2590477]
[1720777990170,45.0,135.14,135.06,0.8551477]
[1720777990171,7.4035,135.07,135.06,0.8551477]
[1720777990378,7.4026,135.09,135.06,0.8551477]
[1720777990577,7.402,135.1,135.06,0.8551477]
[1720777991078,7.4004,135.13,135.07,7.4032]
[1720777991281,29.51,135.16,135.06,0.8551477]
[1720777991795,36.909,135.16,135.1,7.4016]
[1720777991968,7.3995,135.15,135.1,7.4016]
[1720777992285,7.4006,135.13,135.08,7.4029]
[1720777992480,7.4006,135.13,135.06,0.8551477]
[1720777992481,7.4008,135.12,135.07,7.4033]
[1720777992682,7.4004,135.13,135.07,7.4033]
[1720777992888,7.4002,135.14,135.08,7.4026]
[1720777993090,7.3993,135.15,135.1,7.4019]
[1720777993271,29.51,135.16,135.06,0.8551477]
[1720777993468,7.4003,135.13,135.08,7.4028]
[1720777993667,7.5655919,135.18,135.13,7.3998]
[1720777993983,7.3981,135.17,135.08,16.3889]
[1720777994396,7.3987,135.16,135.08,16.3889]
[1720777994562,7.3993,135.15,135.1,7.4017]
[1720777994768,7.3986,135.16,135.11,7.4011]
[1720777994973,7.3982,135.17,135.12,7.4007]
[1720777995173,7.3982,135.17,135.09,1.23589511]
[1720777995174,36.60753301,135.21,135.09,1.23589511]
[1720777995389,44.00373301,135.21,135.16,7.3984]
[1720777995694,7.3965,135.2,135.15,24.0483]
[1720777995890,7.09753301,135.21,135.15,16.6492]
[1720777996192,7.3973,135.19,135.15,16.6492]
[1720777997091,7.3964,135.2,135.15,24.0483]
[1720777997791,7.3971,135.19,135.15,16.6492]
[1720777999178,7.3976,135.18,135.15,16.6492]
[1720777999377,7.3971,135.19,135.15,16.6492]
[1720777999706,7.3965,135.2,135.15,24.0483]
[1720777999873,7.3959,135.21,135.16,7.3981]
[1720778000993,25.58263301,135.25,135.15,16.6492]
[1720778001197,7.09753301,135.25,135.19,7.3969]
[1720778001391,7.09753301,135.25,135.18,7.3973]
[1720778001600,29.51,135.26,135.17,15.0044]
[1720778001769,6.53696839,135.27,135.17,15.0044]
[1720778001770,7.3926,135.27,135.22,7.3949]
[1720778002101,0.17273886,135.29,135.21,7.3956]
[1720778002102,7.3933,135.26,135.21,7.3956]
[1720778002811,7.3948,135.23,135.18,7.3971]
[1720778002988,29.51,135.25,135.17,15.0044]
[1720778003173,29.51,135.25,135.17,22.4021]
[1720778003174,7.3956,135.22,135.17,22.4021]
[1720778003376,47.9946,135.25,135.17,15.0044]
[1720778003684,7.3964,135.2,135.17,15.0044]
[1720778003885,7.3959,135.21,135.17,15.0044]
[1720778004600,7.3966,135.2,135.17,15.0044]
[1720778005474,20.0,135.19,135.06,30.3651477]
[1720778005673,20.0,135.19,135.07,1.48003905]
[1720778005889,7.3984,135.17,135.12,7.4004]
[1720778007091,7.3996,135.15,135.1,7.4017]
[1720778007401,20.0,135.14,135.06,0.8551477]
[1720778007603,7.4009,135.12,135.06,0.8551477]
[1720778007986,7.4009,135.12,135.07,7.4032]
[1720778008602,29.51,135.13,135.06,0.8551477]
[1720778008918,65.0,135.12,135.06,0.8551477]
[1720778009083,7.4022,135.1,135.06,0.8551477]
[1720778009283,27.4012,135.12,135.06,8.2586477]
[1720778009512,20.0,135.12,135.06,0.8551477]
[1720778009813,7.4021,135.1,135.06,0.8551477]
[1720778010106,7.402,135.1,135.06,0.8551477]
[1720778010321,7.4014,135.11,135.06,8.2591477]
[1720778010501,20.0,135.1,135.06,8.2591477]
[1720778010711,7.4025,135.09,135.06,0.8551477]
[1720778010902,27.402,135.1,135.06,0.8551477]
[1720778011116,20.0,135.1,135.06,8.2590477]
[1720778011422,7.4017,135.11,135.06,8.2590477]
[1720778011615,20.0,135.12,135.06,8.2590477]
[1720778011616,20.0,135.12,135.06,0.8551477]
[1720778011821,7.4028,135.09,135.06,0.8551477]
[1720778012128,7.403,135.08,135.06,0.8551477]
[1720778012337,74.51,135.11,135.06,0.8551477]
[1720778012497,7.4035,135.07,135.06,0.8551477]
[1720778012831,7.4047,135.05,135.0,5.01]
[1720778013316,7.4062,135.03,135.0,5.01]
[1720778013812,7.4059,135.03,135.0,5.01]
[1720778014014,29.51,135.05,135.0,5.01]
[1720778014330,7.4063,135.02,135.0,5.01]
[1720778014833,18.5091,135.07,135.0,5.01]
[1720778015001,7.4059,135.03,135.0,5.01]
[1720778015317,75.0,135.06,135.0,5.01]
[1720778015517,7.4068,135.01,135.0,5.01]
[1720778015703,52.4068,135.01,135.0,5.01]
[1720778016212,7.4068,135.01,135.0,5.01]
[1720778017003,52.4068,135.01,135.0,5.01]
[1720778017406,72.4068,135.01,135.0,5.01]
[1720778018131,72.74753076,135.01,135.0,5.01]
[1720778018935,27.74753076,135.01,135.0,5.01]
[1720778020523,72.74753076,135.01,135.0,5.01]
[1720778021221,72.74753076,135.01,135.0,6.23e-05]
[1720778022425,7.4102,134.95,134.92,0.8551477]
[1720778022803,10.0,134.98,134.92,0.8551477]
[1720778023007,26.14204283,134.99,134.92,0.8551477]
[1720778023234,7.4092,134.97,134.92,0.8551477]
[1720778023438,7.4096,134.96,134.92,0.8551477]
[1720778023610,7.4091,134.97,134.92,0.8551477]
[1720778023935,7.4094,134.97,134.92,0.8551477]
[1720778024108,7.96157359,134.99,134.92,0.8551477]
[1720778024312,7.4094,134.97,134.92,0.8551477]
[1720778024636,45.0,134.96,134.92,0.8551477]
[1720778024804,45.0,134.96,134.92,8.2667477]
[1720778025009,7.74933076,134.98,134.93,7.4111]
[1720778025434,0.34073076,134.98,134.93,7.4108]
[1720778025631,0.34073076,134.98,134.92,0.8551477]
[1720778025817,7.4091,134.97,134.92,8.2668477]
[1720778026015,0.34073076,134.98,134.92,8.2668477]
[1720778026417,7.74933076,134.98,134.92,8.2668477]
[1720778026724,7.4095,134.97,134.92,0.8551477]
[1720778027033,52.4098,134.96,134.92,0.8551477]
[1720778027332,7.74933076,134.98,134.92,8.2668477]
[1720778027520,45.0,134.97,134.92,8.2668477]
[1720778027717,52.4091,134.97,134.92,8.2668477]
[1720778027922,7.4097,134.96,134.92,0.8551477]
[1720778028236,7.4102,134.95,134.92,0.8551477]
[1720778029133,73.523,134.97,134.92,0.8551477]
[1720778029335,7.4112,134.93,134.92,0.8551477]
[1720778029631,52.4112,134.93,134.92,0.8551477]
[1720778029809,7.4112,134.93,134.92,0.8551477]